bitfinex/quotes_BTCUSD_20240803
["timestamp","ask_amount","ask_price","bid_price","bid_amount"]
[1722706884354,0.976762,60756.0,60755.0,0.007]
[1722706884558,1.305947,60756.0,60755.0,0.007]
[1722706884963,0.976762,60756.0,60755.0,0.007]
[1722706885165,0.0705,60756.0,60748.0,0.07875194]
[1722706885411,0.0695,60762.0,60761.0,0.004]
[1722706885611,0.234076,60762.0,60761.0,0.004]
[1722706885784,0.329127,60767.0,60761.0,0.1655376]
[1722706885991,0.15437439,60774.0,60763.0,0.164571]
[1722706886186,0.1528,60774.0,60764.0,0.15745924]
[1722706886387,0.164552,60771.0,60764.0,0.33009928]
[1722706886595,0.1528,60774.0,60770.0,0.07875194]
[1722706886869,0.164544,60774.0,60771.0,0.16550985]
[1722706887077,0.164544,60774.0,60771.0,0.00805061]
[1722706887078,0.329092,60774.0,60771.0,0.00805061]
[1722706887281,0.164562,60768.0,60761.0,0.1]
[1722706887478,0.001,60774.0,60772.0,0.00804784]
[1722706887780,0.01,60768.0,60752.0,0.09753105]
[1722706888007,0.1646,60753.0,60752.0,0.1]
[1722706888217,0.164585,60759.0,60753.0,0.00810057]
[1722706888418,0.164598,60754.0,60752.0,0.10810335]
[1722706888625,0.164598,60754.0,60746.0,0.09753105]
[1722706888626,0.0695,60754.0,60746.0,0.09753105]
[1722706888827,0.164619,60746.0,60745.0,0.09753105]
[1722706889040,0.0695,60754.0,60752.0,0.01]
[1722706889268,0.0695,60762.0,60753.0,0.40081118]
[1722706889471,0.0695,60762.0,60753.0,0.23621118]
[1722706889683,0.001,60754.0,60753.0,0.33374223]
[1722706889886,0.001,60754.0,60753.0,0.15745924]
[1722706890106,0.001,60754.0,60738.0,0.21601605]
[1722706890107,0.001,60754.0,60748.0,0.09753105]
[1722706890312,0.164609,60750.0,60749.0,0.25499029]
[1722706890519,0.164609,60750.0,60749.0,0.15745924]
[1722706890735,0.002,60754.0,60745.0,0.10853105]
[1722706890736,0.493842,60748.0,60745.0,0.10853105]
[1722706890948,0.002,60754.0,60745.0,0.10853105]
[1722706890949,0.002,60754.0,60748.0,0.07875194]
[1722706891160,0.002,60754.0,60749.0,0.15745924]
[1722706891569,0.164595,60755.0,60749.0,0.15745924]
[1722706891745,0.164593,60756.0,60752.0,0.09753105]
[1722706892009,0.493796,60754.0,60753.0,0.001]
[1722706892216,0.164598,60754.0,60753.0,0.001]
[1722706892429,0.164603,60752.0,60749.0,0.2555653]
[1722706892630,0.329196,60754.0,60749.0,0.16345924]
[1722706892631,0.330196,60754.0,60749.0,0.16345924]
[1722706892871,0.164606,60751.0,60749.0,0.16145924]
[1722706893106,0.823045,60750.0,60749.0,0.004]
[1722706893331,0.00959536,60758.0,60747.0,0.09810606]
[1722706893501,0.00959536,60758.0,60744.0,0.07875194]
[1722706893502,0.00157439,60757.0,60753.0,0.08475194]
[1722706893841,0.164593,60756.0,60753.0,0.08475194]
[1722706894203,0.16617039,60755.0,60753.0,0.08475194]
[1722706894406,0.16617039,60755.0,60753.0,0.006]
[1722706894627,0.00157439,60755.0,60753.0,0.006]
[1722706894836,0.330207,60752.0,60751.0,0.09810606]
[1722706895040,0.164609,60750.0,60749.0,0.006]
[1722706895243,0.823045,60750.0,60749.0,0.006]
[1722706895473,1.152263,60750.0,60749.0,0.006]
[1722706895725,0.001,60755.0,60742.0,0.1]
[1722706895934,0.001,60752.0,60742.0,0.25745924]
[1722706896135,0.164621,60746.0,60742.0,0.3555653]
[1722706896346,0.164615,60748.0,60743.0,0.07875194]
[1722706896553,0.001,60750.0,60749.0,0.008]
[1722706896758,0.824045,60750.0,60749.0,0.008]
[1722706897460,1.306063,60750.0,60749.0,0.008]
[1722706897720,0.976845,60750.0,60749.0,0.008]
[1722706897927,0.001,60750.0,60749.0,0.17145924]
[1722706898142,0.0695,60758.0,60749.0,0.26174348]
[1722706898339,0.00157439,60757.0,60751.0,0.07875194]
[1722706898608,0.32917,60759.0,60752.0,0.15745924]
[1722706898876,0.1528,60765.0,60752.0,0.15745924]
[1722706898877,0.00157439,60758.0,60752.0,0.15745924]
[1722706899119,0.164593,60756.0,60752.0,0.15745924]
[1722706899630,0.1646,60754.0,60752.0,0.15745924]
[1722706899877,0.00157439,60753.0,60752.0,0.15745924]
[1722706900135,0.001,60757.0,60752.0,0.15745924]
[1722706900382,0.001,60757.0,60753.0,0.24335094]
[1722706900632,0.001,60757.0,60754.0,0.15745924]
[1722706900872,0.16559,60757.0,60754.0,0.15745924]
[1722706901109,0.164595,60756.0,60754.0,0.15745924]
[1722706901591,0.00157439,60755.0,60754.0,0.15745924]
[1722706902076,0.00157439,60755.0,60754.0,0.17055703]
[1722706902346,0.00157439,60755.0,60754.0,0.17755703]
[1722706902600,0.00157439,60755.0,60754.0,0.16555703]
[1722706902832,0.164595,60755.0,60754.0,0.17355703]
[1722706903310,0.2347,60761.0,60754.0,0.17355703]
[1722706903573,0.00157439,60760.0,60754.0,0.18055703]
[1722706903851,0.00083,60756.0,60754.0,0.18055703]
[1722706904105,0.00083,60756.0,60755.0,0.922977]
[1722706904343,0.00083,60756.0,60755.0,1.08043624]
[1722706904576,0.00083,60756.0,60755.0,1.41772226]
[1722706905113,0.00083,60756.0,60755.0,1.97175605]
[1722706905381,0.00083,60756.0,60755.0,2.00584605]
[1722706905622,0.00083,60756.0,60755.0,2.00783567]
[1722706905859,0.00083,60756.0,60755.0,2.04583567]
[1722706906137,0.00083,60756.0,60755.0,1.69064467]
[1722706906361,0.00083,60756.0,60755.0,1.67664467]
[1722706906578,0.00083,60756.0,60755.0,1.70490151]
[1722706907694,0.00083,60756.0,60755.0,1.36268905]
[1722706907900,0.00083,60756.0,60755.0,0.93649805]
[1722706908107,0.00083,60756.0,60755.0,1.30268905]
[1722706908312,0.00083,60756.0,60755.0,1.3164461]
[1722706908521,0.00083,60756.0,60755.0,1.61780063]
[1722706908751,0.00083,60756.0,60755.0,1.62980063]
[1722706908970,0.00083,60756.0,60755.0,1.65780063]
[1722706909178,0.00083,60756.0,60755.0,1.64580063]
[1722706909382,0.00083,60756.0,60755.0,1.64380063]
[1722706909591,0.00083,60756.0,60755.0,1.62980063]
[1722706909887,0.00083,60756.0,60755.0,1.63180063]
[1722706910551,0.00083,60756.0,60755.0,1.64580063]
[1722706910965,0.00083,60756.0,60755.0,1.64180063]
[1722706911173,0.00083,60756.0,60755.0,1.65380063]
[1722706911377,0.00083,60756.0,60755.0,1.67780063]
[1722706911585,0.00083,60756.0,60755.0,1.98699163]
[1722706911794,0.00083,60756.0,60755.0,1.99299163]
[1722706912011,0.00083,60756.0,60755.0,1.97888369]
[1722706912221,0.00083,60756.0,60755.0,2.10879369]
[1722706912422,0.00083,60756.0,60755.0,2.09479369]
[1722706912634,0.00157439,60776.0,60775.0,0.164541]
[1722706912843,0.00157439,60776.0,60775.0,1.08016424]
[1722706913051,0.0695,60791.0,60775.0,0.26549876]
[1722706913261,0.0695,60791.0,60778.0,0.15745924]
[1722706913476,0.0695,60791.0,60783.0,0.329036]
[1722706913678,0.0695,60791.0,60784.0,0.26074921]
[1722706913892,0.0695,60791.0,60788.0,0.164505]
[1722706914095,0.0695,60791.0,60789.0,0.15745924]
[1722706914304,0.09658641,60799.0,60792.0,0.328989]
[1722706914597,0.05996,60800.0,60793.0,0.15745924]
[1722706914838,0.05996,60800.0,60793.0,0.16544883]
[1722706915044,0.05996,60800.0,60794.0,0.1]
[1722706915302,0.05996,60800.0,60795.0,0.15745924]
[1722706915510,0.164481,60798.0,60795.0,0.16544329]
[1722706915718,0.328953,60799.0,60795.0,0.16544329]
[1722706915719,0.164482,60797.0,60795.0,0.16544329]
[1722706916136,0.05996,60800.0,60795.0,0.16544329]
[1722706916342,0.06096,60800.0,60799.0,0.493428]
[1722706916550,0.06096,60800.0,60799.0,0.15745924]
[1722706916757,0.05996,60800.0,60799.0,0.3299082]
[1722706917196,0.05996,60800.0,60799.0,1.0878122]
[1722706917403,0.05996,60800.0,60799.0,1.4167642]
[1722706917813,0.251239,60813.0,60806.0,0.164456]
[1722706918024,0.0868,60813.0,60807.0,0.25745924]
[1722706918227,0.0868,60813.0,60807.0,0.26629345]
[1722706918454,0.251238,60813.0,60807.0,0.26629345]
[1722706918664,0.0868,60813.0,60807.0,0.26629345]
[1722706918871,0.00083,60819.0,60810.0,0.328891]
[1722706918872,0.0868,60818.0,60810.0,0.328891]
[1722706919082,0.00083,60819.0,60811.0,0.26074769]
[1722706919493,0.001,60813.0,60812.0,0.00328845]
[1722706919704,0.001,60813.0,60812.0,0.15745924]
[1722706919922,0.494315,60813.0,60812.0,0.10881881]
[1722706920131,0.001,60813.0,60812.0,0.77707088]
[1722706920341,0.001,60813.0,60812.0,1.11060117]
[1722706920541,0.001,60813.0,60812.0,0.75871917]
[1722706920750,0.00083,60819.0,60813.0,0.328874]
[1722706920983,0.164425,60818.0,60814.0,0.25745924]
[1722706921193,0.165252,60819.0,60814.0,0.26539063]
[1722706921402,0.00083,60819.0,60814.0,0.26539063]
[1722706922024,0.164433,60815.0,60814.0,0.26539063]
[1722706922296,1.304431,60815.0,60814.0,0.00793139]
[1722706922533,0.811132,60815.0,60797.0,0.00964933]
[1722706922762,0.00157439,60814.0,60799.0,0.07875194]
[1722706922969,0.164438,60813.0,60805.0,0.164459]
[1722706923176,0.00157439,60812.0,60807.0,0.164453]
[1722706923393,0.00157439,60812.0,60808.0,0.15745924]
[1722706923394,0.164449,60809.0,60808.0,0.15745924]
[1722706923611,0.1488,60808.0,60789.0,0.12240242]
[1722706923841,0.493485,60792.0,60789.0,0.12240242]
[1722706924056,0.971275,60792.0,60789.0,0.12240242]
[1722706924908,0.642285,60792.0,60789.0,0.12240242]
[1722706925135,0.313295,60792.0,60789.0,0.12240242]
[1722706925348,0.0649,60798.0,60791.0,0.25538117]
[1722706925558,0.229379,60798.0,60792.0,0.15745924]
[1722706925764,0.0649,60798.0,60792.0,0.16698152]
[1722706925983,0.0649,60805.0,60793.0,0.16074882]
[1722706926195,0.0649,60805.0,60794.0,0.1]
[1722706926422,0.0649,60805.0,60795.0,0.15745924]
[1722706926423,0.328925,60804.0,60795.0,0.15745924]
[1722706926628,0.002,60798.0,60796.0,0.1]
[1722706926862,0.002,60798.0,60797.0,0.32194024]
[1722706927114,0.23627439,60804.0,60796.0,0.10950842]
[1722706927325,0.23627439,60804.0,60777.0,0.07875194]
[1722706927326,0.164489,60794.0,60793.0,0.001]
[1722706927544,0.822447,60794.0,60793.0,0.001]
[1722706927764,0.164489,60794.0,60793.0,0.001]
[1722706927981,0.0649,60802.0,60794.0,0.328978]
[1722706928209,0.0649,60802.0,60795.0,0.15745924]
[1722706928426,0.0649,60802.0,60801.0,0.16447]
[1722706928645,0.001,60804.0,60801.0,0.15745924]
[1722706928852,0.001,60804.0,60803.0,0.493396]
[1722706929063,0.001,60804.0,60803.0,0.65085524]
[1722706929275,0.001,60804.0,60803.0,1.4512014]
[1722706929500,0.00927,60817.0,60816.0,0.82215]
[1722706929680,0.00927,60817.0,60816.0,1.07960924]
[1722706929922,0.00927,60817.0,60816.0,1.08904837]
[1722706930137,0.00927,60817.0,60816.0,1.41790837]
[1722706930803,0.00927,60817.0,60816.0,1.08904837]
[1722706931014,0.00927,60817.0,60816.0,0.43132837]
[1722706931229,0.00927,60817.0,60816.0,0.76018837]
[1722706931456,0.00927,60817.0,60816.0,1.08904837]
[1722706932081,0.00927,60817.0,60816.0,1.71827031]
[1722706932314,0.00083,60819.0,60818.0,1.160975]
[1722706932526,0.00083,60819.0,60818.0,1.44143424]
[1722706932734,0.00083,60819.0,60818.0,1.11201644]
[1722706933160,0.00083,60819.0,60818.0,1.44086644]
[1722706933425,0.00157439,60835.0,60825.0,0.328806]
[1722706933631,0.164394,60830.0,60826.0,0.25745924]
[1722706933854,0.493201,60827.0,60826.0,0.1094045]
[1722706934063,0.905902,60827.0,60826.0,0.0094045]
[1722706934322,0.905902,60827.0,60803.0,0.1557]
[1722706934323,0.0839,60827.0,60804.0,0.328922]
[1722706934557,0.0649,60816.0,60805.0,0.15745924]
[1722706934792,0.00157439,60815.0,60805.0,0.15745924]
[1722706935062,0.164442,60812.0,60805.0,0.15745924]
[1722706935524,0.00157439,60811.0,60805.0,0.15745924]
[1722706935529,0.822285,60806.0,60805.0,0.15745924]
[1722706935763,0.493371,60806.0,60805.0,0.15745924]
[1722706936041,0.2347,60808.0,60790.0,0.328998]
[1722706936279,0.2347,60808.0,60794.0,0.328978]
[1722706936280,0.164466,60803.0,60794.0,0.328978]
[1722706936519,0.00157439,60802.0,60795.0,0.15745924]
[1722706936764,0.164468,60803.0,60795.0,0.32194424]
[1722706937023,0.00157439,60802.0,60795.0,0.15745924]
[1722706937267,0.164469,60802.0,60795.0,0.32194524]
[1722706937509,0.00157439,60801.0,60795.0,0.32194524]
[1722706937804,0.00157439,60801.0,60799.0,0.000913]
[1722706938041,0.164473,60800.0,60799.0,0.000913]
[1722706938280,0.822367,60800.0,60799.0,0.000913]
[1722706938521,0.164473,60800.0,60799.0,0.000913]
[1722706938760,0.2347,60801.0,60799.0,0.000913]
[1722706939010,0.16604739,60800.0,60799.0,0.000913]
[1722706939244,0.822367,60800.0,60799.0,0.000913]
[1722706939507,0.971167,60800.0,60799.0,0.000913]
[1722706939745,0.1488,60800.0,60799.0,0.004913]
[1722706940026,0.164467,60803.0,60799.0,0.16737224]
[1722706940275,0.0649,60807.0,60800.0,0.15745924]
[1722706940276,0.164463,60804.0,60800.0,0.15745924]
[1722706940513,0.0649,60807.0,60800.0,0.1669538]
[1722706940752,0.328924,60805.0,60800.0,0.1669538]
[1722706940988,0.16603839,60804.0,60800.0,0.1669538]
[1722706941220,0.164469,60802.0,60800.0,0.1669538]
[1722706941454,0.00157439,60801.0,60800.0,0.1669538]
[1722706941724,0.00157439,60804.0,60800.0,0.2669538]
[1722706941987,0.0839,60808.0,60801.0,0.07875194]
[1722706942231,0.001,60805.0,60804.0,0.822302]
[1722706942474,0.001,60805.0,60804.0,1.40028624]
[1722706942720,0.066,60819.0,60804.0,0.26693994]
[1722706942721,0.164434,60815.0,60804.0,0.26693994]
[1722706942980,0.00975818,60824.0,60804.0,0.26693994]
[1722706942981,0.1535,60806.0,60804.0,0.26693994]
[1722706943225,0.49338,60805.0,60804.0,0.26693994]
[1722706943468,0.328844,60820.0,60804.0,0.25745924]
[1722706943469,0.066,60812.0,60804.0,0.25745924]
[1722706943765,0.0875,60821.0,60809.0,0.15745924]
[1722706944010,0.2347,60830.0,60809.0,0.15745924]
[1722706944011,0.47251164,60824.0,60814.0,0.23621118]
[1722706944279,0.066,60827.0,60815.0,0.451864]
[1722706944529,0.00157439,60826.0,60816.0,0.15745924]
[1722706944749,0.066,60827.0,60820.0,0.164418]
[1722706944964,0.066,60827.0,60821.0,0.15745924]
[1722706945179,0.328809,60826.0,60822.0,0.1]
[1722706945398,0.164411,60823.0,60822.0,0.1]
[1722706945613,0.164431,60816.0,60807.0,0.328908]
[1722706945817,0.2347,60823.0,60814.0,0.164434]
[1722706945818,0.164418,60821.0,60814.0,0.164434]
[1722706946027,0.328834,60821.0,60820.0,0.007]
[1722706946245,1.150917,60821.0,60820.0,0.007]
[1722706946454,0.16443,60816.0,60815.0,0.25745924]
[1722706946680,0.328833,60821.0,60815.0,0.25745924]
[1722706946894,0.2347,60823.0,60815.0,0.25745924]
[1722706946895,0.16443,60816.0,60815.0,0.25745924]
[1722706947103,0.164425,60818.0,60815.0,0.25745924]
[1722706947332,0.164414,60822.0,60820.0,0.007]
[1722706947545,0.2347,60823.0,60820.0,0.007]
[1722706947546,0.164416,60821.0,60820.0,0.007]
[1722706947752,0.493249,60821.0,60820.0,0.007]
[1722706947978,0.328824,60823.0,60822.0,0.005]
[1722706948193,0.493235,60823.0,60822.0,0.005]
[1722706948416,0.328816,60825.0,60822.0,0.005]
[1722706948654,0.24432231,60830.0,60823.0,0.15745924]
[1722706948655,0.00962231,60830.0,60823.0,0.15745924]
[1722706948863,0.33840931,60830.0,60823.0,0.15745924]
[1722706949071,0.24432231,60830.0,60820.0,0.007]
[1722706949282,0.24432231,60830.0,60821.0,0.15745924]
[1722706949500,0.24432231,60830.0,60822.0,0.005]
[1722706949723,0.164411,60823.0,60822.0,0.15745924]
[1722706950160,0.24432231,60830.0,60822.0,0.15745924]
[1722706950367,0.493233,60823.0,60822.0,0.002]
[1722706951006,0.164411,60823.0,60822.0,0.002]
[1722706951441,0.164409,60824.0,60822.0,0.002]
[1722706951643,0.164409,60824.0,60822.0,0.00941835]
[1722706951872,0.164415,60822.0,60817.0,0.1]
[1722706952096,0.164415,60822.0,60818.0,0.15745924]
[1722706952320,0.24432231,60830.0,60822.0,0.005]
[1722706952321,0.394804,60827.0,60822.0,0.005]
[1722706952662,0.164404,60826.0,60822.0,0.16245924]
[1722706952717,0.00962231,60830.0,60823.0,0.15745924]
[1722706952916,0.0875,60831.0,60825.0,0.164405]
[1722706953115,0.0875,60831.0,60826.0,0.15745924]
[1722706953660,0.00083,60833.0,60826.0,0.32186124]
[1722706953661,0.165214,60833.0,60826.0,0.32186124]
[1722706953790,0.165214,60833.0,60826.0,0.15745924]
[1722706954003,0.00083,60833.0,60826.0,0.15745924]
[1722706954482,0.00083,60833.0,60819.0,0.1]
[1722706954483,0.0675,60826.0,60819.0,0.1]
[1722706954827,0.164416,60821.0,60820.0,0.15745924]
[1722706955249,0.493249,60821.0,60820.0,0.26688452]
[1722706955678,1.150915,60821.0,60820.0,0.00942528]
[1722706955886,0.164416,60821.0,60820.0,0.00942528]
[1722706956127,0.00157439,60825.0,60820.0,0.32887824]
[1722706956327,0.0675,60826.0,60822.0,0.328824]
[1722706956566,0.164393,60830.0,60823.0,0.32186924]
[1722706956777,0.00157439,60831.0,60823.0,0.16687413]
[1722706956990,0.164398,60828.0,60823.0,0.16687413]
[1722706957195,0.328785,60830.0,60823.0,0.16687413]
[1722706957196,0.164395,60829.0,60823.0,0.16687413]
[1722706957406,0.00157439,60828.0,60823.0,0.16687413]
[1722706957634,0.328785,60830.0,60823.0,0.16687413]
[1722706957635,0.164408,60824.0,60823.0,0.00941489]
[1722706957842,0.493225,60824.0,60823.0,0.00941489]
[1722706958049,0.164416,60821.0,60820.0,0.007]
[1722706958264,0.00157439,60820.0,60814.0,0.1978119]
[1722706958478,0.16599939,60818.0,60815.0,0.15745924]
[1722706958654,0.328824,60823.0,60816.0,0.1]
[1722706958655,0.328847,60819.0,60816.0,0.1]
[1722706958885,0.00157439,60818.0,60816.0,0.1]
[1722706959091,0.16598039,60825.0,60817.0,0.328855]
[1722706959326,0.164408,60824.0,60823.0,0.003]
[1722706959536,0.822042,60824.0,60823.0,0.003]
[1722706959712,0.16442,60820.0,60818.0,0.1]
[1722706959955,0.328817,60824.0,60818.0,0.1]
[1722706959956,0.00157439,60821.0,60818.0,0.1]
[1722706960170,0.00157439,60823.0,60818.0,0.1]
[1722706960415,0.00995435,60829.0,60818.0,0.1]
[1722706960416,0.328834,60821.0,60818.0,0.1]
[1722706960614,0.00157439,60819.0,60818.0,0.1]
[1722706961040,0.00157439,60824.0,60823.0,0.328822]
[1722706961271,0.0675,60832.0,60824.0,0.164408]
[1722706961499,0.2347,60829.0,60818.0,0.1]
[1722706961704,0.2347,60829.0,60817.0,0.07875194]
[1722706961705,0.00157439,60822.0,60817.0,0.07875194]
[1722706961924,0.0846,60831.0,60819.0,0.15745924]
[1722706962151,0.0846,60831.0,60820.0,0.1]
[1722706962358,0.328801,60827.0,60821.0,0.15745924]
[1722706962568,0.00157439,60824.0,60821.0,0.15745924]
[1722706962796,0.00157439,60827.0,60821.0,0.15745924]
[1722706963002,0.164404,60826.0,60821.0,0.15745924]
[1722706963426,0.00157439,60825.0,60821.0,0.15745924]
[1722706963842,0.16597839,60826.0,60821.0,0.15745924]
[1722706964485,0.00157439,60824.0,60820.0,0.1]
[1722706964688,0.00157439,60821.0,60816.0,0.16443]
[1722706964905,0.328812,60825.0,60817.0,0.25745924]
[1722706965121,0.164425,60818.0,60817.0,0.15745924]
[1722706965353,0.328842,60820.0,60817.0,0.25745924]
[1722706965558,0.2347,60829.0,60821.0,0.004]
[1722706965559,0.493242,60822.0,60821.0,0.004]
[1722706965766,0.164417,60821.0,60818.0,0.1]
[1722706965990,0.164417,60821.0,60818.0,0.25745924]
[1722706966203,0.164422,60819.0,60818.0,0.25745924]
[1722706966410,0.493266,60819.0,60818.0,0.25745924]
[1722706966822,0.82211,60819.0,60818.0,0.25745924]
[1722706967026,0.560966,60819.0,60818.0,0.25745924]
[1722706967445,0.0677,60819.0,60818.0,0.25745924]
[1722706967654,0.164414,60822.0,60818.0,0.25745924]
[1722706967858,0.39651,60826.0,60819.0,0.15745924]
[1722706967859,0.164409,60824.0,60819.0,0.15745924]
[1722706968129,0.0677,60826.0,60821.0,0.006]
[1722706968336,0.164393,60830.0,60823.0,0.00157439]
[1722706968552,0.0846,60831.0,60824.0,0.15745924]
[1722706968771,0.164387,60832.0,60825.0,0.164405]
[1722706968979,0.164387,60832.0,60824.0,0.15745924]
[1722706968980,0.164387,60832.0,60826.0,0.15745924]
[1722706969193,0.164387,60832.0,60826.0,0.16686374]
[1722706969405,0.06853,60833.0,60826.0,0.16686374]
[1722706969406,0.00083,60833.0,60832.0,0.164387]
[1722706969614,0.00083,60833.0,60832.0,1.07939424]
[1722706969839,0.00083,60833.0,60832.0,1.08877797]
[1722706970045,0.00083,60833.0,60832.0,1.57825011]
[1722706970880,0.00083,60833.0,60832.0,1.24947611]
[1722706971097,0.00083,60833.0,60832.0,0.83880211]
[1722706971301,0.00083,60833.0,60832.0,1.08877797]
[1722706971521,0.00083,60833.0,60832.0,1.16814466]
[1722706972011,0.00083,60833.0,60832.0,1.49691556]
[1722706972239,0.00083,60833.0,60832.0,1.96439956]
[1722706972456,0.00083,60833.0,60832.0,2.50732474]
[1722706972664,0.00927,60860.0,60837.0,1.511361]
[1722706972872,0.00927,60860.0,60837.0,2.53259051]
[1722706973084,0.00927,60860.0,60837.0,2.21320994]
[1722706973713,0.00927,60860.0,60837.0,2.2583042]
[1722706974152,0.00927,60860.0,60837.0,2.29624276]
[1722706974355,0.00927,60860.0,60837.0,2.22794502]
[1722706974967,0.00927,60860.0,60837.0,2.31023209]
[1722706975176,0.08802194,60860.0,60837.0,2.25429353]
[1722706975386,0.08802194,60860.0,60837.0,2.28482547]
[1722706975387,0.00927,60860.0,60837.0,2.28482547]
[1722706975621,0.0677,60850.0,60837.0,0.95163546]
[1722706975825,0.0677,60850.0,60837.0,1.16939267]
[1722706976088,0.0677,60850.0,60837.0,1.24930345]
[1722706976301,0.07875194,60849.0,60837.0,0.19482567]
[1722706976543,0.0677,60850.0,60837.0,0.33119867]
[1722706976544,0.164343,60848.0,60837.0,0.33119867]
[1722706976796,0.0677,60850.0,60837.0,0.98869267]
[1722706977008,0.0677,60850.0,60837.0,1.31743967]
[1722706977264,0.0677,60857.0,60837.0,1.73790693]
[1722706977466,0.0677,60857.0,60837.0,1.65818667]
[1722706977677,0.0677,60857.0,60837.0,1.44043967]
[1722706977678,0.396342,60857.0,60837.0,1.44043967]
[1722706977887,0.396342,60857.0,60837.0,1.45443967]
[1722706978146,0.164325,60855.0,60837.0,1.45443967]
[1722706978364,0.164324,60856.0,60837.0,1.46843967]
[1722706978579,0.328654,60855.0,60837.0,1.45443967]
[1722706978786,0.164331,60853.0,60837.0,1.46843967]
[1722706978989,0.328654,60855.0,60837.0,1.46843967]
[1722706979194,0.164334,60852.0,60837.0,1.46843967]
[1722706979840,0.164334,60852.0,60837.0,0.45919867]
[1722706979841,0.07875194,60851.0,60837.0,0.45919867]
[1722706980048,0.0677,60840.0,60837.0,0.29482567]
[1722706980258,0.0677,60840.0,60837.0,0.78794567]
[1722706980461,0.328669,60852.0,60837.0,0.78794567]
[1722706980462,0.0677,60847.0,60837.0,0.78794567]
[1722706980674,0.0677,60847.0,60837.0,1.11669267]
[1722706981094,0.0677,60855.0,60837.0,1.45743967]
[1722706981301,0.0677,60855.0,60837.0,1.86562449]
[1722706981510,0.0677,60855.0,60837.0,2.04546808]
[1722706981728,0.01005808,60856.0,60855.0,0.492975]
[1722706981930,0.00927,60860.0,60859.0,0.164314]
[1722706982138,0.00927,60860.0,60859.0,1.10202924]
[1722706982347,0.00927,60860.0,60859.0,1.1102873]
[1722706982549,0.00927,60860.0,60859.0,1.4389153]
[1722706982755,0.00927,60860.0,60859.0,1.1102873]
[1722706982963,0.00927,60860.0,60859.0,1.4489153]
[1722706983173,0.00927,60860.0,60859.0,1.8594433]
[1722706983381,0.00927,60860.0,60859.0,1.96753233]
[1722706983591,0.00927,60860.0,60859.0,2.21712496]
[1722706983798,0.00927,60860.0,60859.0,2.09921337]
[1722706983999,0.00927,60860.0,60859.0,2.24146387]
[1722706984208,0.00252627,60861.0,60860.0,1.15175439]
[1722706984420,0.00252627,60861.0,60860.0,1.78926224]
[1722706984627,0.00252627,60861.0,60860.0,1.88663813]
[1722706984871,0.00252627,60861.0,60860.0,2.29631338]
[1722706985297,0.00252627,60861.0,60860.0,2.21526113]
[1722706985510,0.0677,60886.0,60885.0,0.164244]
[1722706985747,0.00926,60894.0,60885.0,0.25745924]
[1722706985949,0.00926,60894.0,60893.0,0.82111]
[1722706986177,0.00926,60894.0,60893.0,1.07856924]
[1722706986398,0.00926,60894.0,60893.0,1.08774205]
[1722706987051,0.00926,60894.0,60893.0,0.26663205]
[1722706987783,0.00926,60894.0,60893.0,0.16663205]
[1722706987985,0.00926,60894.0,60893.0,0.26663205]
[1722706988613,0.501918,60894.0,60893.0,0.16663205]
[1722706988817,0.501918,60894.0,60893.0,0.00917281]
[1722706989021,0.243579,60894.0,60893.0,0.011]
[1722706989233,0.572018,60894.0,60893.0,0.021]
[1722706989651,0.900457,60894.0,60893.0,0.011]
[1722706990073,1.228896,60894.0,60893.0,0.021]
[1722706990260,1.321596,60894.0,60893.0,0.021]
[1722706990700,1.311596,60894.0,60893.0,0.021]
[1722706991176,1.311596,60894.0,60893.0,0.011]
[1722706991383,0.16206,60894.0,60881.0,0.15745924]
[1722706991587,1.311596,60894.0,60893.0,0.002]
[1722706991793,1.311596,60894.0,60893.0,0.01017281]
[1722706992006,0.82126,60882.0,60881.0,0.15745924]
[1722706992214,0.97076,60882.0,60881.0,0.15745924]
[1722706992455,0.16429,60868.0,60863.0,0.4675]
[1722706992657,0.164298,60865.0,60864.0,0.15745924]
[1722706992858,0.82149,60865.0,60864.0,0.15745924]
[1722706993067,0.07875194,60880.0,60864.0,0.15745924]
[1722706993068,0.0809,60868.0,60864.0,0.15745924]
[1722706993274,0.0686,60879.0,60867.0,0.15745924]
[1722706993503,0.0686,60879.0,60871.0,0.15745924]
[1722706993722,0.0686,60879.0,60873.0,0.07875194]
[1722706993924,0.0686,60887.0,60874.0,0.16074424]
[1722706994135,0.00990193,60884.0,60874.0,0.15745924]
[1722706994366,0.0686,60887.0,60874.0,0.15745924]
[1722706994367,0.492813,60875.0,60874.0,0.15745924]
[1722706994585,0.164295,60866.0,60865.0,0.4675]
[1722706994804,0.164295,60866.0,60865.0,0.25745924]
[1722706995008,0.164291,60868.0,60865.0,0.25745924]
[1722706995236,0.313771,60875.0,60874.0,0.001]
[1722706995440,0.001,60887.0,60874.0,0.15845924]
[1722706995441,0.164261,60879.0,60874.0,0.15845924]
[1722706995651,0.0686,60881.0,60875.0,0.25745924]
[1722706995870,0.164252,60882.0,60875.0,0.4250144]
[1722706996084,0.328505,60882.0,60875.0,0.2607444]
[1722706996317,0.07965838,60887.0,60875.0,0.25745924]
[1722706996531,0.164268,60876.0,60875.0,0.25745924]
[1722706997014,0.492804,60876.0,60875.0,0.25745924]
[1722706997242,0.164268,60876.0,60875.0,0.25745924]
[1722706997502,0.07865838,60887.0,60875.0,0.25745924]
[1722706997727,0.164268,60876.0,60875.0,0.25745924]
[1722706997951,0.07865838,60887.0,60875.0,0.26345924]
[1722706997952,0.164258,60880.0,60875.0,0.26345924]
[1722706998203,0.328483,60886.0,60875.0,0.26345924]
[1722706998517,0.164263,60878.0,60876.0,0.00328491]
[1722706998614,0.328518,60880.0,60876.0,0.00328491]
[1722706998871,0.07865838,60887.0,60877.0,0.16074427]
[1722706999105,0.0686,60892.0,60878.0,0.1]
[1722706999357,0.16426,60880.0,60879.0,0.16074399]
[1722706999562,0.16426,60880.0,60879.0,0.25745924]
[1722706999563,0.82129,60880.0,60879.0,0.25745924]
[1722706999775,1.149805,60880.0,60879.0,0.25745924]